fUST/lending_fUST_20250816
["ID","MTS","AMOUNT","RATE_DAILY","PERIOD"]
[379429020,1755274272636,-151.0,0.00022521,7]
[379429023,1755274272650,-230.985939,0.00022521,7]
[379429025,1755274272664,-253.550863,0.00022521,7]
[379429028,1755274272680,-253.550863,0.00022521,7]
[379429030,1755274272695,-154.727804,0.00022521,7]
[379429033,1755274272709,-154.727804,0.00022521,7]
[379429035,1755274272723,-663.4,0.00022549,4]
[379429038,1755274272737,-800.0,0.00022598,2]
[379429050,1755274272841,-200.0,0.00022702,20]
[379429051,1755274272852,-200.0,0.00022702,20]
[379429053,1755274272862,-200.0,0.00022702,20]
[379429055,1755274272871,-200.0,0.00022702,20]
[379429057,1755274272880,-200.0,0.00022702,20]
[379429059,1755274272890,-200.0,0.00022702,20]
[379429061,1755274272899,-200.0,0.00022702,20]
[379429063,1755274272911,-200.0,0.00022702,20]
[379429065,1755274272922,-200.0,0.00022702,20]
[379429068,1755274272932,-200.0,0.00022702,20]
[379429070,1755274272942,-350.0,0.00022702,20]
[379429072,1755274272952,-500.0,0.00022729,2]
[379429073,1755274272962,-460.0,0.00022739,2]
[379429075,1755274272971,-5508.02,0.00022739,2]
[379429078,1755274272981,-460.0,0.00022739,2]
[379429079,1755274272992,-460.0,0.00022739,2]
[379429082,1755274273002,-612.44,0.00022739,2]
[379429083,1755274273011,-460.0,0.00022739,2]
[379429086,1755274273021,-460.0,0.00022739,2]
[379429088,1755274273031,-1025.55,0.00022739,2]
[379429090,1755274273041,-935.56,0.00022739,2]
[379429092,1755274273050,-1409.25,0.00022739,2]
[379429094,1755274273060,-2347.59,0.00022739,2]
[379429096,1755274273069,-460.0,0.00022739,2]
[379429098,1755274273079,-460.0,0.00022739,2]
[379429100,1755274273088,-1181.41,0.00022739,2]
[379429102,1755274273099,-1936.79,0.00022744,2]
[379429104,1755274273108,-2000.0,0.0002278,2]
[379429106,1755274273118,-205.65074388,0.0002278,7]
[379429108,1755274273127,-800.0,0.0002279,2]
[379429110,1755274273137,-151.0,0.000228,8]
[379429112,1755274273146,-230.985943,0.0002284,7]
[379429114,1755274273156,-150.885253,0.00022944,3]
[379429116,1755274273165,-800.0,0.00022945,2]
[379429118,1755274273174,-660.0,0.00022951,2]
[379429119,1755274273184,-30880.56263429,0.00022997,2]
[379429121,1755274273193,-151.0,0.00022997,7]
[379429123,1755274273203,-253.550863,0.00022997,7]
[379429125,1755274273212,-253.550864,0.00022997,7]
[379429127,1755274273222,-154.727804,0.00022997,7]
[379429129,1755274273231,-154.727804,0.00022997,7]
[379429131,1755274273241,-299.999999,0.00023,2]
[379429133,1755274273251,-160.0,0.00023,3]
[379429135,1755274273260,-160.0,0.00023,3]
[379429137,1755274273270,-2000.71031757,0.00023,2]
[379429139,1755274273280,-5061.74435076,0.00023,2]
[379429141,1755274273289,-1341.35794119,0.00023,2]
[379429143,1755274273299,-160.0,0.00023,3]
[379429145,1755274273309,-160.0,0.00023,3]
[379429147,1755274273321,-160.0,0.00023,3]
[379429149,1755274273330,-160.0,0.00023,3]
[379429151,1755274273340,-153.45193099,0.00023,2]
[379429153,1755274273351,-500.0,0.00023,8]
[379429155,1755274273360,-168.0,0.00023,7]
[379429157,1755274273370,-168.0,0.00023,7]
[379429159,1755274273379,-500.0,0.00023,8]
[379429161,1755274273391,-500.0,0.00023003,2]
[379429163,1755274273401,-460.0,0.00023013,2]
[379429165,1755274273411,-5508.02,0.00023013,2]
[379429167,1755274273421,-460.0,0.00023013,2]
[379429169,1755274273430,-460.0,0.00023013,2]
[379429171,1755274273440,-612.44,0.00023013,2]
[379429173,1755274273449,-460.0,0.00023013,2]
[379429175,1755274273459,-460.0,0.00023013,2]
[379429177,1755274273469,-1025.55,0.00023013,2]
[379429179,1755274273479,-935.56,0.00023013,2]
[379429181,1755274273488,-1409.25,0.00023013,2]
[379429183,1755274273497,-2347.59,0.00023013,2]
[379429185,1755274273507,-460.0,0.00023013,2]
[379429187,1755274273516,-460.0,0.00023013,2]
[379429189,1755274273526,-1181.41,0.00023013,2]
[379429191,1755274273535,-350.0,0.00023014,2]
[379429193,1755274273545,-150.885253,0.0002304,14]
[379429195,1755274273555,-1259.61176669,0.00023068,2]
[379429197,1755274273564,-654.65201671,0.00023068,2]
[379429199,1755274273573,-1500.0,0.00023068,2]
[379429201,1755274273585,-1500.0,0.00023068,2]
[379429203,1755274273596,-350.0,0.00023068,2]
[379429205,1755274273605,-150.68302437,0.00023073,2]
[379429207,1755274273615,-150.0,0.00023076,2]
[379429209,1755274273624,-972.0,0.00023076,2]
[379429211,1755274273633,-2152.0,0.00023076,2]
[379429213,1755274273642,-636.0,0.00023076,2]
[379429215,1755274273651,-408.0,0.00023076,2]
[379429217,1755274273660,-500.0,0.00023085,2]
[379429219,1755274273670,-36389.94,0.000231,7]
[379429221,1755274273679,-19897.22545671,0.00023114,2]
[379429223,1755274273689,-1700.0,0.00023145,2]
[379429225,1755274273698,-2200.0,0.0002317,2]
[379429227,1755274273708,-663.4,0.0002317,4]
[379429229,1755274273718,-71769.34,0.000232,2]
[379429231,1755274273727,-165.92803,0.00023235,7]
[379429233,1755274273737,-165.92803,0.00023235,7]
[379429235,1755274273746,-2259.59,0.00023238,2]
[379429237,1755274273755,-200.0,0.0002326,7]
[379429239,1755274273764,-503.9592743,0.00023277,2]
[379429241,1755274273774,-151.0,0.00023287,7]
[379429243,1755274273784,-154.727804,0.00023287,7]
[379429245,1755274273793,-154.72781,0.00023287,7]
[379429247,1755274273804,-151.02,0.00023287,2]
[379429249,1755274273813,-5508.02,0.00023287,2]
[379429251,1755274273822,-170.2,0.00023287,2]
[379429253,1755274273832,-460.0,0.00023287,2]
[379429255,1755274273842,-612.44,0.00023287,2]
[379429257,1755274273855,-460.0,0.00023287,2]
[379429259,1755274273865,-460.0,0.00023287,2]
[379429261,1755274273875,-1025.55,0.00023287,2]
[379429263,1755274273885,-935.56,0.00023287,2]
[379429265,1755274273895,-1409.25,0.00023287,2]
[379429267,1755274273905,-2347.59,0.00023287,2]
[379429269,1755274273914,-460.0,0.00023287,2]
[379429271,1755274273924,-460.0,0.00023287,2]
[379429273,1755274273934,-1181.41,0.00023287,2]
[379429275,1755274273944,-151.0,0.00023288,7]
[379429277,1755274273954,-151.0,0.00023288,7]
[379429279,1755274273963,-151.0,0.00023288,7]
[379429281,1755274273973,-245.0,0.00023288,7]
[379429283,1755274273982,-244.284495,0.00023288,2]
[379429285,1755274273993,-151.0,0.00023288,7]
[379429287,1755274274002,-151.0,0.00023288,7]
[379429289,1755274274012,-151.0,0.00023288,7]
[379429291,1755274274021,-160.0,0.00023298,3]
[379429293,1755274274031,-160.0,0.000233,7]
[379429295,1755274274040,-150.885253,0.0002336,7]
[379429297,1755274274049,-2000.0,0.000234,2]
[379429299,1755274274059,-245.998085,0.000234,7]
[379429301,1755274274068,-245.998085,0.000234,7]
[379429303,1755274274078,-151.0,0.000234,7]
[379429312,1755274274157,-151.0,0.000234,10]
[379429314,1755274274167,-10626.0173505,0.00023413,2]
[379429316,1755274274177,-15093.6908749,0.00023431,2]
[379429318,1755274274187,-1576.57736794,0.00023479,2]
[379429320,1755274274196,-760.0,0.00023499,2]
[379429322,1755274274205,-11177.04,0.000235,7]
[379429324,1755274274214,-1000.0,0.000235,2]
[379429326,1755274274224,-151.0,0.000235,10]
[379429328,1755274274233,-2313.8205029,0.000235,14]
[379429330,1755274274243,-645.0,0.000235,2]
[379429332,1755274274252,-30880.56263429,0.00023513,2]
[379429334,1755274274262,-165.92803,0.00023513,7]
[379429336,1755274274272,-165.92803,0.00023513,7]
[379429338,1755274274281,-151.0,0.00023561,7]
[379429340,1755274274291,-5508.02,0.00023561,2]
[379429342,1755274274300,-151.0,0.00023561,7]
[379429344,1755274274310,-151.0,0.00023561,7]
[379429346,1755274274322,-460.0,0.00023561,2]
[379429348,1755274274331,-612.44,0.00023561,2]
[379429350,1755274274341,-460.0,0.00023561,2]
[379429352,1755274274352,-460.0,0.00023561,2]
[379429353,1755274274362,-1025.55,0.00023561,2]
[379429356,1755274274373,-935.56,0.00023561,2]
[379429357,1755274274382,-1409.25,0.00023561,2]
[379429360,1755274274392,-2347.59,0.00023561,2]
[379429361,1755274274403,-460.0,0.00023561,2]
[379429363,1755274274413,-460.0,0.00023561,2]
[379429366,1755274274422,-1181.41,0.00023561,2]
[379429367,1755274274434,-538.55518668,0.00023562,2]
[379429369,1755274274443,-2000.0,0.00023616,2]
[379429371,1755274274452,-2000.0,0.00023616,2]
[379429373,1755274274461,-450.0,0.00023616,2]
[379429375,1755274274471,-292.91,0.000237,7]
[379429377,1755274274480,-8657.14723378,0.00023717,2]
[379429379,1755274274489,-800.0,0.00023718,2]
[379429381,1755274274500,-2582.39,0.00023733,2]
[379429383,1755274274510,-8657.14723378,0.00023771,2]
[379429385,1755274274519,-17759.47532372,0.00023779,2]
[379429387,1755274274529,-663.4,0.00023792,5]
[379429389,1755274274539,-17759.47532372,0.00023796,2]
[379429391,1755274274548,-800.0,0.00023813,2]
[379429393,1755274274557,-5508.02,0.00023835,2]
[379429395,1755274274567,-460.0,0.00023835,2]
[379429397,1755274274576,-612.44,0.00023835,2]
[379429399,1755274274585,-460.0,0.00023835,2]
[379429401,1755274274596,-606.13,0.00023835,2]
[379429403,1755274274606,-1025.55,0.00023835,2]
[379429405,1755274274616,-935.56,0.00023835,2]
[379429407,1755274274625,-1409.25,0.00023835,2]
[379429409,1755274274635,-460.0,0.00023835,2]
[379429411,1755274274644,-2347.59,0.00023835,2]
[379429413,1755274274654,-538.98,0.00023835,2]
[379429415,1755274274663,-1181.41,0.00023835,2]
[379429417,1755274274673,-10626.01735043,0.00023836,2]
[379429419,1755274274683,-245.998085,0.000239,7]
[379429421,1755274274692,-245.998085,0.000239,7]
[379429423,1755274274703,-151.0,0.000239,9]
[379429425,1755274274712,-823.0,0.00023928,2]
[379429427,1755274274721,-150.0,0.00023973,2]
[379429429,1755274274730,-150000.0,0.00023976,2]
[379429431,1755274274740,-95513.80738187,0.00023976,2]
[379429433,1755274274749,-160.0,0.0002399,4]
[379429435,1755274274759,-133343.11747513,0.00024,14]
[379429437,1755274274768,-1700.93253725,0.00024,2]
[379429439,1755274274777,-323.25617999,0.00024,2]
[379429441,1755274274787,-1024.69407805,0.00024,7]
[379429443,1755274274796,-160.0,0.00024,7]
[379429445,1755274274805,-160.0,0.00024,7]
[379429447,1755274274815,-160.0,0.00024,7]
[379429449,1755274274824,-160.0,0.00024,7]
[379429451,1755274274833,-2000.0,0.00024,14]
[379429453,1755274274843,-2000.0,0.00024,14]
[379429455,1755274274854,-2000.0,0.00024,14]
[379429457,1755274274863,-2000.0,0.00024,14]
[379429459,1755274274873,-1444.0,0.00024,14]
[379429461,1755274274882,-35242.59,0.00024,30]
[379429463,1755274274892,-150.885253,0.00024,30]
[379429465,1755274274901,-245.998085,0.00024,7]
[379429467,1755274274911,-245.998085,0.00024,7]
[379429469,1755274274920,-182.647044,0.00024,7]
[379429471,1755274274930,-165.92803,0.00024,7]
[379429473,1755274274939,-165.92803,0.00024,7]
[379429475,1755274274949,-151.0,0.00024,7]
[379429477,1755274274958,-266.558665,0.00024,7]
[379429479,1755274274967,-232.08354597,0.00024,7]
[379429481,1755274274977,-216.77912109,0.00024,7]
[379429483,1755274274986,-160.0,0.00024,7]
[379429485,1755274274996,-528.28344625,0.00024,7]
[379429487,1755274275005,-160.0,0.00024,7]
[379429489,1755274275015,-843.47195277,0.00024,7]
[379429491,1755274275025,-417.15472785,0.00024,7]
[379429493,1755274275035,-253.0,0.00024,7]
[379429495,1755274275044,-30880.56263429,0.00024029,2]
[379429497,1755274275054,-860.0,0.00024047,2]
[379429499,1755274275063,-153.0,0.00024058,2]
[379429501,1755274275073,-153.0,0.00024058,2]
[379429503,1755274275083,-153.0,0.00024058,2]
[379429505,1755274275092,-153.0,0.00024058,2]
[379429506,1755274275102,-153.0,0.00024058,2]
[379429509,1755274275112,-153.0,0.00024058,2]
[379429510,1755274275121,-153.0,0.00024058,2]
[379429512,1755274275130,-153.0,0.00024058,2]
[379429514,1755274275140,-153.0,0.00024058,2]
[379429516,1755274275149,-153.0,0.00024058,2]
[379429518,1755274275158,-153.0,0.00024058,2]
[379429520,1755274275168,-153.0,0.00024058,2]
[379429522,1755274275178,-153.0,0.00024058,2]
[379429524,1755274275188,-153.0,0.00024058,2]
[379429526,1755274275197,-153.0,0.00024058,2]
[379429528,1755274275207,-153.0,0.00024058,2]
[379429530,1755274275216,-153.0,0.00024058,2]
[379429532,1755274275226,-153.0,0.00024058,2]
[379429534,1755274275235,-153.0,0.00024058,2]
[379429536,1755274275245,-153.0,0.00024058,2]
[379429538,1755274275255,-153.0,0.00024058,2]
[379429540,1755274275264,-153.0,0.00024058,2]
[379429542,1755274275273,-153.0,0.00024058,2]
[379429544,1755274275282,-153.0,0.00024058,2]
[379429547,1755274275357,-153.0,0.00024058,2]
[379429548,1755274275368,-153.0,0.00024058,2]
[379429549,1755274275377,-153.0,0.00024058,2]
[379429550,1755274275387,-153.0,0.00024058,2]
[379429551,1755274275397,-153.0,0.00024058,2]
[379429552,1755274275407,-153.0,0.00024058,2]
[379429553,1755274275416,-153.0,0.00024058,2]
[379429554,1755274275425,-153.0,0.00024058,2]
[379429555,1755274275434,-153.0,0.00024058,2]
[379429556,1755274275443,-153.0,0.00024058,2]
[379429558,1755274275452,-153.0,0.00024058,2]
[379429559,1755274275461,-153.0,0.00024058,2]
[379429560,1755274275471,-153.0,0.00024058,2]
[379429562,1755274275481,-153.0,0.00024058,2]
[379429564,1755274275491,-153.0,0.00024058,2]
[379429566,1755274275500,-153.0,0.00024058,2]
[379429568,1755274275510,-500.0,0.00024058,2]
[379429570,1755274275519,-153.0,0.00024058,2]
[379429572,1755274275529,-153.0,0.00024058,2]
[379429574,1755274275538,-153.0,0.00024058,2]
[379429576,1755274275548,-153.0,0.00024058,2]
[379429578,1755274275557,-153.0,0.00024058,2]
[379429580,1755274275567,-153.0,0.00024058,2]
[379429582,1755274275577,-153.0,0.00024058,2]
[379429584,1755274275586,-153.0,0.00024058,2]
[379429586,1755274275597,-153.0,0.00024058,2]
[379429588,1755274275607,-153.0,0.00024058,2]
[379429590,1755274275617,-153.0,0.00024058,2]
[379429592,1755274275626,-153.0,0.00024058,2]
[379429594,1755274275635,-153.0,0.00024058,2]
[379429596,1755274275645,-153.0,0.00024058,2]
[379429598,1755274275655,-153.0,0.00024058,2]
[379429600,1755274275664,-153.0,0.00024058,2]
[379429602,1755274275674,-153.0,0.00024058,2]
[379429604,1755274275684,-153.0,0.00024058,2]
[379429606,1755274275693,-153.0,0.00024058,2]
[379429608,1755274275703,-153.0,0.00024058,2]
[379429610,1755274275712,-153.0,0.00024058,2]
[379429612,1755274275721,-153.0,0.00024058,2]
[379429614,1755274275730,-153.0,0.00024058,2]
[379429616,1755274275739,-153.0,0.00024058,2]
[379429617,1755274275749,-153.0,0.00024058,2]
[379429619,1755274275758,-153.0,0.00024058,2]
[379429621,1755274275768,-153.0,0.00024058,2]
[379429623,1755274275778,-153.0,0.00024058,2]
[379429625,1755274275787,-153.0,0.00024058,2]
[379429627,1755274275797,-153.0,0.00024058,2]
[379429629,1755274275806,-153.0,0.00024058,2]
[379429631,1755274275816,-153.0,0.00024058,2]
[379429633,1755274275826,-153.0,0.00024058,2]
[379429635,1755274275835,-153.0,0.00024058,2]
[379429637,1755274275844,-153.0,0.00024058,2]
[379429639,1755274275856,-153.0,0.00024058,2]
[379429641,1755274275866,-153.0,0.00024058,2]
[379429642,1755274275875,-153.0,0.00024058,2]
[379429644,1755274275885,-153.0,0.00024058,2]
[379429646,1755274275895,-153.0,0.00024058,2]
[379429648,1755274275904,-153.0,0.00024058,2]
[379429650,1755274275914,-153.0,0.00024058,2]
[379429652,1755274275924,-153.0,0.00024058,2]
[379429654,1755274275933,-153.0,0.00024058,2]
[379429656,1755274275943,-153.0,0.00024058,2]
[379429658,1755274275952,-153.0,0.00024058,2]
[379429660,1755274275961,-153.0,0.00024058,2]
[379429662,1755274275970,-153.0,0.00024058,2]
[379429664,1755274275979,-153.0,0.00024058,2]
[379429666,1755274275989,-153.0,0.00024058,2]
[379429668,1755274275998,-153.0,0.00024058,2]
[379429670,1755274276008,-153.0,0.00024058,2]
[379429672,1755274276017,-153.0,0.00024058,2]
[379429674,1755274276027,-153.0,0.00024058,2]
[379429676,1755274276036,-153.0,0.00024058,2]
[379429678,1755274276046,-153.0,0.00024058,2]
[379429680,1755274276056,-153.0,0.00024058,2]
[379429682,1755274276066,-153.0,0.00024058,2]
[379429684,1755274276076,-153.0,0.00024058,2]
[379429686,1755274276086,-153.0,0.00024058,2]
[379429687,1755274276095,-153.0,0.00024058,2]
[379429689,1755274276107,-153.0,0.00024058,2]
[379429691,1755274276116,-153.0,0.00024058,2]
[379429693,1755274276126,-153.0,0.00024058,2]
[379429695,1755274276135,-153.0,0.00024058,2]
[379429697,1755274276145,-153.0,0.00024058,2]
[379429699,1755274276155,-5508.02,0.00024109,2]
[379429701,1755274276165,-460.0,0.00024109,2]
[379429703,1755274276174,-612.44,0.00024109,2]
[379429705,1755274276184,-460.0,0.00024109,2]
[379429707,1755274276194,-1025.55,0.00024109,2]
[379429709,1755274276205,-935.56,0.00024109,2]
[379429711,1755274276215,-1409.25,0.00024109,2]
[379429713,1755274276224,-460.0,0.00024109,2]
[379429715,1755274276233,-2347.59,0.00024109,2]
[379429717,1755274276243,-1181.41,0.00024109,2]
[379429719,1755274276252,-150.885253,0.0002416,7]
[379429721,1755274276261,-165.92803,0.00024164,7]
[379429723,1755274276271,-165.92803,0.00024164,7]
[379429725,1755274276280,-1578.90618298,0.00024164,2]
[379429727,1755274276289,-168.0,0.00024164,7]
[379429729,1755274276298,-550.0,0.00024164,2]
[379429731,1755274276308,-2500.0,0.00024164,2]
[379429733,1755274276318,-151.0,0.000242,10]
[379429735,1755274276331,-36389.94,0.000242,7]
[379429737,1755274276341,-2905.19,0.00024227,2]
[379429739,1755274276352,-500.0,0.0002424,2]
[379429741,1755274276362,-1700.0,0.00024241,2]
[379429743,1755274276373,-151.0,0.00024241,7]
[379429745,1755274276382,-10626.01735043,0.00024259,2]
[379429747,1755274276391,-800.0,0.00024267,2]
[379429748,1755274276401,-245.998085,0.00024383,7]
[379429750,1755274276411,-245.998085,0.00024383,7]
[379429752,1755274276421,-5508.02,0.00024383,2]
[379429754,1755274276434,-460.0,0.00024383,2]
[379429757,1755274276445,-612.44,0.00024383,2]
[379429758,1755274276455,-460.0,0.00024383,2]
[379429761,1755274276466,-1025.55,0.00024383,2]
[379429762,1755274276477,-935.56,0.00024383,2]
[379429764,1755274276488,-1409.25,0.00024383,2]
[379429766,1755274276498,-505.76,0.00024383,2]
[379429768,1755274276509,-2347.59,0.00024383,2]
[379429770,1755274276521,-1181.41,0.00024383,2]
[379429772,1755274276531,-2000.0,0.000244,2]
[379429774,1755274276541,-71769.34,0.000244,2]
[379429776,1755274276551,-663.4,0.00024413,5]
[379429778,1755274276562,-800.0,0.00024433,2]
[379429780,1755274276572,-253.0,0.00024439,7]
[379429782,1755274276583,-20633.42279861,0.00024483,2]
[379429784,1755274276594,-659.82930762,0.000245,2]
[379429786,1755274276611,-300.0,0.00024521,2]
[379429788,1755274276622,-30880.56263429,0.00024545,2]
[379429790,1755274276632,-960.0,0.00024595,2]
[379429792,1755274276643,-441738.42189671,0.0002465,2]
[379429794,1755274276654,-504.35327477,0.0002465,2]
[379429796,1755274276664,-245.998085,0.0002465,7]
[379429798,1755274276674,-245.998085,0.0002465,7]
[379429800,1755274276684,-165.92803,0.0002465,7]
[379429802,1755274276695,-165.928038,0.0002465,7]
[379429804,1755274276706,-151.0,0.0002465,7]
[379429806,1755274276716,-5508.02,0.00024657,2]
[379429808,1755274276727,-460.0,0.00024657,2]
[379429810,1755274276737,-612.44,0.00024657,2]
[379429812,1755274276749,-460.0,0.00024657,2]
[379429814,1755274276761,-1025.55,0.00024657,2]
[379429816,1755274276773,-935.56,0.00024657,2]
[379429818,1755274276784,-1409.25,0.00024657,2]
[379429820,1755274276795,-2347.59,0.00024657,2]
[379429822,1755274276807,-1181.41,0.00024657,2]
[379429824,1755274276817,-283.569342,0.00024658,7]
[379429826,1755274276828,-283.569342,0.00024658,7]
[379429828,1755274276840,-283.569342,0.00024658,7]
[379429830,1755274276855,-283.569342,0.00024658,7]
[379429832,1755274276866,-283.569342,0.00024658,7]
[379429834,1755274276878,-283.569342,0.00024658,7]
[379429836,1755274276890,-283.569342,0.00024658,7]
[379429838,1755274276900,-283.569342,0.00024658,7]
[379429840,1755274276912,-283.569342,0.00024658,7]
[379429842,1755274276923,-283.569342,0.00024658,7]
[379429844,1755274276935,-283.569342,0.00024658,7]
[379429846,1755274276945,-283.569342,0.00024658,7]
[379429848,1755274276957,-283.569342,0.00024658,7]
[379429850,1755274276968,-283.569342,0.00024658,7]
[379429852,1755274276978,-283.569342,0.00024658,7]
[379429854,1755274276990,-283.569342,0.00024658,7]
[379429856,1755274277002,-283.569342,0.00024658,7]
[379429858,1755274277013,-283.569342,0.00024658,7]
[379429860,1755274277025,-283.569342,0.00024658,7]
[379429862,1755274277036,-283.569339,0.00024658,7]
[379429864,1755274277046,-200.0,0.00024658,2]
[379429866,1755274277058,-380.0,0.00024658,2]
[379429868,1755274277069,-200.0,0.00024658,15]
[379429870,1755274277079,-151.0,0.00024658,2]
[379429872,1755274277090,-699.0,0.00024658,2]
[379429874,1755274277104,-10626.01735043,0.00024682,2]
[379429876,1755274277116,-160.0,0.00024683,5]
[379429878,1755274277127,-800.0,0.00024687,2]
[379429880,1755274277139,-554.48185675,0.0002469,10]
[379429882,1755274277150,-11177.04,0.000247,7]
[379429884,1755274277161,-650.0,0.00024712,2]
[379429886,1755274277172,-3000.0,0.00024712,2]
[379429888,1755274277183,-443.96,0.00024714,2]
[379429890,1755274277194,-3227.99,0.00024722,2]
[379429892,1755274277205,-1576.57736794,0.00024762,2]
[379429894,1755274277216,-16514.37334855,0.00024774,2]
[379429896,1755274277231,-1995.130064,0.000248,5]
[379429898,1755274277242,-151.0,0.000248,7]
[379429900,1755274277252,-150.0,0.000248,2]
[379429902,1755274277263,-200.0,0.0002484,11]
[379429904,1755274277274,-1255.22604149,0.000249,30]
[379429906,1755274277285,-250.0,0.000249,2]
[379429908,1755274277295,-250.0,0.000249,2]
[379429910,1755274277306,-250.0,0.000249,2]
[379429912,1755274277321,-250.0,0.000249,2]
[379429914,1755274277331,-250.0,0.000249,2]
[379429916,1755274277342,-250.0,0.000249,2]
[379429918,1755274277358,-390.4,0.000249,2]
[379429920,1755274277369,-245.998085,0.000249,7]
[379429922,1755274277380,-245.998085,0.000249,7]
[379429924,1755274277390,-151.0,0.000249,7]
[379429926,1755274277401,-322.5,0.000249,2]
[379429928,1755274277413,-322.5,0.000249,2]
[379429930,1755274277423,-719632.067091,0.000249,2]
[379429932,1755274277434,-3111.98,0.00024903,30]
[379429934,1755274277444,-5508.02,0.00024931,2]
[379429936,1755274277454,-460.0,0.00024931,2]
[379429938,1755274277463,-612.44,0.00024931,2]
[379429940,1755274277474,-460.0,0.00024931,2]
[379429942,1755274277483,-1025.55,0.00024931,2]
[379429944,1755274277493,-935.56,0.00024931,2]
[379429946,1755274277502,-1409.25,0.00024931,2]
[379429948,1755274277512,-2347.59,0.00024931,2]
[379429950,1755274277522,-1181.41,0.00024931,2]
[379429952,1755274277531,-151.0,0.00024932,2]
[379429954,1755274277541,-699.0,0.00024932,2]
[379429956,1755274277551,-200.0,0.00024932,20]
[379429958,1755274277562,-200.0,0.00024932,20]
[379429960,1755274277572,-200.0,0.00024932,20]
[379429962,1755274277582,-200.0,0.00024932,20]
[379429964,1755274277593,-200.0,0.00024932,20]
[379429966,1755274277607,-200.0,0.00024932,20]
[379429968,1755274277618,-200.0,0.00024932,20]
[379429970,1755274277628,-200.0,0.00024932,20]
[379429972,1755274277639,-200.0,0.00024932,20]
[379429974,1755274277649,-200.0,0.00024932,20]
[379429976,1755274277659,-200.0,0.00024932,20]
[379429978,1755274277669,-200.0,0.00024932,20]
[379429980,1755274277679,-200.0,0.00024932,20]
[379429982,1755274277689,-200.0,0.00024932,20]
[379429984,1755274277699,-200.0,0.00024932,20]
[379429986,1755274277708,-292.0,0.00024932,20]
[379429988,1755274277718,-150.885253,0.0002496,7]
[379429990,1755274277728,-1139.247459,0.0002498,5]
[379429992,1755274277738,-150.0,0.00024993,30]
[379429994,1755274277748,-9213.30664912,0.00025,2]
[379429996,1755274277757,-1066.84979093,0.00025,2]
[379429998,1755274277767,-16049.24095389,0.00025,2]
[379429999,1755274277776,-2627.15433876,0.00025,2]
[379430000,1755274277786,-40000.0,0.00025,2]
[379430001,1755274277795,-208.30659336,0.00025,2]
[379430002,1755274277804,-10364.0,0.00025,2]
[379430003,1755274277814,-359.60287581,0.00025,2]
[379430004,1755274277823,-553.26443397,0.00025,2]
[379430005,1755274277832,-500.0,0.00025,2]
[379430006,1755274277842,-110112.42175553,0.00025,2]
[379430007,1755274277854,-600.0,0.00025,2]
[379430008,1755274277863,-160.9563376,0.00025,3]
[379430009,1755274277873,-292.91,0.00025,7]
[379430010,1755274277883,-4975.04212429,0.00025,30]